fUST/lending_fUST_20240924
["ID","MTS","AMOUNT","RATE_DAILY","PERIOD"]
[339020103,1727130686754,-1846.29,0.00034246,30]
[339020104,1727130686767,-500.0,0.00034246,30]
[339020105,1727130686776,-1397.17,0.00034246,2]
[339020106,1727130686786,-500.0,0.00034246,30]
[339020107,1727130686795,-500.0,0.00034246,30]
[339020108,1727130686804,-684.0,0.00034246,30]
[339020109,1727130686813,-604.33,0.00034246,30]
[339020110,1727130686824,-500.0,0.00034246,30]
[339020111,1727130686834,-500.0,0.00034246,30]
[339020112,1727130686844,-500.0,0.00034246,30]
[339020113,1727130686853,-500.0,0.00034246,30]
[339020114,1727130686862,-1000.0,0.00034246,120]
[339020115,1727130686873,-825.29,0.00034246,30]
[339020116,1727130686882,-624.72,0.00034246,30]
[339020117,1727130686892,-500.0,0.00034246,30]
[339020118,1727130686903,-1000.0,0.00034246,99]
[339020119,1727130686913,-248.98,0.00034246,30]
[339020120,1727130686922,-500.0,0.00034246,30]
[339020121,1727130686931,-514.15,0.00034246,30]
[339020122,1727130686940,-500.0,0.00034246,30]
[339020123,1727130686950,-461.73615971,0.00034246,30]
[339020124,1727130686959,-500.0,0.00034246,30]
[339020125,1727130686969,-500.0,0.00034246,30]
[339020126,1727130686978,-511.3948522,0.00034246,30]
[339020127,1727130686988,-741.53,0.00034246,30]
[339020128,1727130686997,-500.0,0.00034246,30]
[339020129,1727130687006,-500.0,0.00034246,30]
[339020130,1727130687015,-500.0,0.00034246,120]
[339020131,1727130687025,-500.0,0.00034246,30]
[339020132,1727130687034,-230.08119867,0.00034246,30]
[339020133,1727130687044,-1260.11,0.00034246,30]
[339020134,1727130687053,-500.0,0.00034246,30]
[339020135,1727130687063,-500.0,0.00034246,30]
[339020136,1727130687080,-545.43,0.00034246,30]
[339020137,1727130687096,-500.0,0.00034246,30]
[339020138,1727130687114,-500.0,0.00034246,30]
[339020139,1727130687133,-536.2,0.00034246,30]
[339020140,1727130687152,-500.0,0.00034246,30]
[339020141,1727130687168,-1484.78,0.00034246,30]
[339020142,1727130687186,-500.0,0.00034246,30]
[339020143,1727130687199,-4278.99,0.00034246,21]
[339020144,1727130687216,-500.0,0.00034246,30]
[339020145,1727130687234,-268.79068635,0.00034246,30]
[339020146,1727130687251,-500.0,0.00034246,30]
[339020147,1727130687266,-500.0,0.00034246,30]
[339020148,1727130687284,-500.0,0.00034246,30]
[339020149,1727130687299,-500.0,0.00034246,30]
[339020150,1727130687314,-729.6,0.00034246,30]
[339020151,1727130687328,-500.0,0.00034246,30]
[339020152,1727130687343,-500.0,0.00034246,30]
[339020153,1727130687358,-500.0,0.00034246,30]
[339020154,1727130687373,-527.26,0.00034246,30]
[339020155,1727130687387,-1276.76,0.00034246,30]
[339020156,1727130687401,-500.0,0.00034246,30]
[339020157,1727130687416,-1463.58,0.00034246,30]
[339020158,1727130687430,-500.0,0.00034246,30]
[339020159,1727130687445,-500.0,0.00034246,30]
[339020160,1727130687459,-1844.92,0.00034246,30]
[339020161,1727130687474,-612.36,0.00034246,30]
[339020162,1727130687488,-500.0,0.00034246,30]
[339020163,1727130687502,-500.0,0.00034246,30]
[339020164,1727130687516,-500.0,0.00034246,7]
[339020165,1727130687531,-500.0,0.00034246,30]
[339020166,1727130687545,-500.0,0.00034246,30]
[339020167,1727130687559,-500.0,0.00034246,30]
[339020168,1727130687573,-500.0,0.00034246,30]
[339020169,1727130687587,-500.0,0.00034246,30]
[339020170,1727130687601,-1266.01,0.00034246,30]
[339020171,1727130687616,-500.0,0.00034246,30]
[339020172,1727130687631,-292.06796532,0.00034246,30]
[339020173,1727130687645,-1200.54,0.00034246,30]
[339020174,1727130687659,-500.0,0.00034246,30]
[339020175,1727130687673,-501.9,0.00034246,30]
[339020176,1727130687687,-500.0,0.00034246,30]
[339020177,1727130687701,-1081.62,0.00034246,30]
[339020178,1727130687716,-500.0,0.00034246,30]
[339020179,1727130687730,-500.0,0.00034246,30]
[339020180,1727130687744,-500.0,0.00034246,30]
[339020181,1727130687759,-500.0,0.00034246,30]
[339020182,1727130687773,-1820.79,0.00034246,7]
[339020183,1727130687787,-694.3,0.00034246,30]
[339020184,1727130687801,-186.14051075,0.00034246,30]
[339020185,1727130687814,-1532.58,0.00034246,30]
[339020186,1727130687831,-1035.06,0.00034246,30]
[339020187,1727130687845,-40342.48,0.00034246,18]
[339020188,1727130687859,-500.0,0.00034246,30]
[339020189,1727130687873,-736.16,0.00034246,30]
[339020190,1727130687887,-413.07680169,0.00034268,5]
[339020191,1727130687902,-151.0,0.00034274,120]
[339020192,1727130687917,-153.659354,0.00034329,2]
[339020193,1727130687931,-153.0,0.00034329,2]
[339020194,1727130687945,-153.0,0.00034329,2]
[339020195,1727130687959,-153.0,0.00034329,2]
[339020196,1727130687972,-1500.0,0.00034331,5]
[339020197,1727130687986,-719.75,0.00034383,30]
[339020198,1727130688001,-969.66,0.00034383,30]
[339020199,1727130688016,-711.06,0.00034383,30]
[339020200,1727130688031,-514.47,0.00034383,30]
[339020201,1727130688046,-513.89,0.00034383,30]
[339020202,1727130688061,-584.13,0.00034383,30]
[339020203,1727130688075,-984.17,0.00034383,30]
[339020204,1727130688089,-683.52,0.00034383,30]
[339020205,1727130688102,-500.0,0.00034383,30]
[339020206,1727130688238,-610.08,0.00034383,30]
[339020207,1727130688253,-1045.6,0.00034383,7]
[339020208,1727130688263,-859.64,0.00034383,30]
[339020209,1727130688273,-1071.88,0.00034383,30]
[339020210,1727130688285,-607.11,0.00034383,30]
[339020211,1727130688294,-194.53089709,0.00034383,30]
[339020212,1727130688303,-500.0,0.00034383,30]
[339020213,1727130688313,-500.0,0.00034383,30]
[339020214,1727130688323,-500.0,0.00034383,30]
[339020215,1727130688333,-678.42,0.00034383,30]
[339020216,1727130688342,-520.8,0.00034383,30]
[339020217,1727130688352,-500.0,0.00034383,30]
[339020218,1727130688361,-581.01,0.00034383,30]
[339020219,1727130688371,-624.97,0.00034383,30]
[339020220,1727130688380,-500.0,0.00034383,30]
[339020221,1727130688390,-746.07,0.00034383,30]
[339020222,1727130688399,-606.75,0.00034383,30]
[339020223,1727130688408,-500.0,0.00034383,30]
[339020224,1727130688418,-500.0,0.00034383,30]
[339020225,1727130688428,-500.0,0.00034383,30]
[339020226,1727130688438,-500.0,0.00034383,30]
[339020227,1727130688449,-500.0,0.00034383,30]
[339020228,1727130688459,-572.02,0.00034383,30]
[339020229,1727130688469,-500.0,0.00034383,30]
[339020230,1727130688478,-527.38,0.00034383,30]
[339020231,1727130688488,-289.34109293,0.00034383,30]
[339020232,1727130688498,-500.0,0.00034383,30]
[339020233,1727130688507,-2283.61,0.00034383,30]
[339020234,1727130688517,-500.0,0.00034383,30]
[339020235,1727130688527,-729.07,0.00034383,25]
[339020236,1727130688537,-440.05080489,0.00034383,30]
[339020237,1727130688547,-500.0,0.00034383,30]
[339020238,1727130688556,-500.0,0.00034383,30]
[339020239,1727130688566,-500.0,0.00034383,30]
[339020240,1727130688575,-500.0,0.00034383,30]
[339020241,1727130688585,-209.1679371,0.00034383,30]
[339020242,1727130688594,-500.0,0.00034383,30]
[339020243,1727130688603,-500.0,0.00034383,30]
[339020244,1727130688612,-500.0,0.00034383,30]
[339020245,1727130688622,-639.96,0.00034383,30]
[339020246,1727130688632,-3024.97,0.00034383,30]
[339020247,1727130688641,-500.0,0.00034383,30]
[339020248,1727130688650,-1122.08,0.00034383,30]
[339020249,1727130688660,-500.0,0.00034383,30]
[339020250,1727130688671,-500.0,0.00034383,30]
[339020251,1727130688680,-500.0,0.00034383,30]
[339020252,1727130688690,-342.90326125,0.00034383,2]
[339020253,1727130688699,-655.57,0.00034383,30]
[339020254,1727130688708,-500.0,0.00034383,30]
[339020255,1727130688718,-500.0,0.00034383,30]
[339020256,1727130688727,-500.0,0.00034383,30]
[339020257,1727130688736,-500.0,0.00034383,30]
[339020258,1727130688745,-532.96,0.00034383,30]
[339020259,1727130688755,-500.0,0.00034383,30]
[339020260,1727130688764,-500.0,0.00034383,30]
[339020261,1727130688774,-500.0,0.00034383,30]
[339020262,1727130688784,-625.74,0.00034383,30]
[339020263,1727130688794,-500.0,0.00034383,30]
[339020264,1727130688804,-500.0,0.00034383,30]
[339020265,1727130688814,-783.45,0.00034383,30]
[339020266,1727130688826,-1230.74,0.00034383,30]
[339020267,1727130688837,-1846.29,0.00034383,30]
[339020268,1727130688846,-500.0,0.00034383,30]
[339020269,1727130688856,-1397.17,0.00034383,2]
[339020270,1727130688867,-500.0,0.00034383,30]
[339020271,1727130688876,-501.02740798,0.00034383,30]
[339020272,1727130688886,-684.0,0.00034383,30]
[339020273,1727130688896,-604.33,0.00034383,30]
[339020274,1727130688906,-500.0,0.00034383,30]
[339020275,1727130688917,-500.0,0.00034383,30]
[339020276,1727130688927,-500.0,0.00034383,30]
[339020277,1727130688937,-569.35328766,0.00034383,30]
[339020278,1727130688946,-1000.0,0.00034383,120]
[339020279,1727130688955,-825.29,0.00034383,30]
[339020280,1727130688966,-624.72,0.00034383,30]
[339020281,1727130688975,-500.0,0.00034383,30]
[339020282,1727130688985,-248.98,0.00034383,30]
[339020283,1727130688994,-500.0,0.00034383,30]
[339020284,1727130689003,-514.15,0.00034383,30]
[339020285,1727130689013,-500.0,0.00034383,30]
[339020286,1727130689023,-500.0,0.00034383,30]
[339020287,1727130689032,-500.0,0.00034383,30]
[339020288,1727130689053,-741.53,0.00034383,30]
[339020289,1727130689062,-500.0,0.00034383,30]
[339020290,1727130689071,-500.0,0.00034383,30]
[339020291,1727130689081,-500.0,0.00034383,120]
[339020292,1727130689091,-593.62740694,0.00034383,30]
[339020293,1727130689100,-1260.11,0.00034383,30]
[339020294,1727130689110,-407.38750883,0.00034383,30]
[339020295,1727130689119,-500.0,0.00034383,30]
[339020296,1727130689129,-545.43,0.00034383,30]
[339020297,1727130689138,-500.0,0.00034383,30]
[339020298,1727130689147,-500.0,0.00034383,30]
[339020299,1727130689156,-536.2,0.00034383,30]
[339020300,1727130689166,-500.0,0.00034383,30]
[339020301,1727130689176,-1484.78,0.00034383,30]
[339020302,1727130689186,-500.0,0.00034383,30]
[339020303,1727130689196,-4278.99,0.00034383,21]
[339020304,1727130689205,-500.0,0.00034383,30]
[339020305,1727130689214,-500.0,0.00034383,30]
[339020306,1727130689224,-500.0,0.00034383,30]
[339020307,1727130689234,-500.0,0.00034383,30]
[339020308,1727130689244,-500.0,0.00034383,30]
[339020309,1727130689253,-729.6,0.00034383,30]
[339020310,1727130689263,-500.0,0.00034383,30]
[339020311,1727130689274,-500.0,0.00034383,30]
[339020312,1727130689286,-500.0,0.00034383,30]
[339020313,1727130689296,-527.26,0.00034383,30]
[339020314,1727130689306,-1276.76,0.00034383,30]
[339020315,1727130689316,-500.0,0.00034383,30]
[339020316,1727130689326,-1463.58,0.00034383,30]
[339020317,1727130689336,-500.0,0.00034383,30]
[339020318,1727130689347,-500.0,0.00034383,30]
[339020319,1727130689357,-1844.92,0.00034383,30]
[339020320,1727130689367,-612.36,0.00034383,30]
[339020321,1727130689377,-500.0,0.00034383,30]
[339020322,1727130689387,-500.0,0.00034383,30]
[339020323,1727130689396,-500.0,0.00034383,7]
[339020324,1727130689406,-500.0,0.00034383,30]
[339020325,1727130689415,-500.0,0.00034383,30]
[339020326,1727130689425,-500.0,0.00034383,30]
[339020327,1727130689435,-500.0,0.00034383,30]
[339020328,1727130689445,-1266.01,0.00034383,30]
[339020329,1727130689454,-500.0,0.00034383,30]
[339020330,1727130689464,-1200.54,0.00034383,30]
[339020331,1727130689473,-638.66251579,0.00034383,30]
[339020332,1727130689483,-501.9,0.00034383,30]
[339020333,1727130689493,-500.0,0.00034383,30]
[339020334,1727130689503,-1081.62,0.00034383,30]
[339020335,1727130689513,-481.60078754,0.00034383,30]
[339020336,1727130689523,-500.0,0.00034383,30]
[339020337,1727130689534,-500.0,0.00034383,30]
[339020338,1727130689544,-500.0,0.00034383,30]
[339020339,1727130689554,-1820.79,0.00034383,7]
[339020340,1727130689564,-694.3,0.00034383,30]
[339020341,1727130689574,-1532.58,0.00034383,30]
[339020342,1727130689584,-1035.06,0.00034383,30]
[339020343,1727130689594,-40342.48,0.00034383,18]
[339020344,1727130689603,-500.0,0.00034383,30]
[339020345,1727130689613,-7357.12,0.000344,14]
[339020346,1727130689622,-1966.29,0.000344,14]
[339020347,1727130689631,-3008.61,0.000344,14]
[339020348,1727130689641,-420.0,0.000344,120]
[339020349,1727130689651,-687.6,0.00034493,7]
[339020350,1727130689661,-600.0,0.00034493,120]
[339020351,1727130689672,-600.0,0.00034493,120]
[339020352,1727130689682,-600.0,0.00034493,120]
[339020353,1727130689691,-719.75,0.0003452,30]
[339020354,1727130689701,-969.66,0.0003452,30]
[339020355,1727130689710,-711.06,0.0003452,30]
[339020356,1727130689720,-514.47,0.0003452,30]
[339020357,1727130689730,-513.89,0.0003452,30]
[339020358,1727130689739,-584.13,0.0003452,30]
[339020359,1727130689749,-984.17,0.0003452,30]
[339020360,1727130689759,-683.52,0.0003452,30]
[339020361,1727130689769,-500.0,0.0003452,30]
[339020362,1727130689778,-610.08,0.0003452,30]
[339020363,1727130689788,-1045.6,0.0003452,7]
[339020364,1727130689797,-859.64,0.0003452,30]
[339020365,1727130689807,-1071.88,0.0003452,30]
[339020366,1727130689816,-607.11,0.0003452,30]
[339020367,1727130689829,-500.0,0.0003452,30]
[339020368,1727130689839,-500.0,0.0003452,30]
[339020369,1727130689848,-500.0,0.0003452,30]
[339020370,1727130689858,-678.42,0.0003452,30]
[339020371,1727130689867,-520.8,0.0003452,30]
[339020372,1727130689876,-518.36137373,0.0003452,30]
[339020373,1727130689886,-581.01,0.0003452,30]
[339020374,1727130689895,-624.97,0.0003452,30]
[339020375,1727130689906,-500.0,0.0003452,30]
[339020376,1727130689916,-746.07,0.0003452,30]
[339020377,1727130689925,-606.75,0.0003452,30]
[339020378,1727130689935,-500.0,0.0003452,30]
[339020379,1727130689944,-511.08579992,0.0003452,30]
[339020380,1727130689953,-510.18897457,0.0003452,30]
[339020381,1727130689962,-500.0,0.0003452,30]
[339020382,1727130689972,-500.0,0.0003452,30]
[339020383,1727130689982,-572.02,0.0003452,30]
[339020384,1727130689992,-162.52336778,0.0003452,30]
[339020385,1727130690002,-527.38,0.0003452,30]
[339020386,1727130690011,-500.0,0.0003452,30]
[339020387,1727130690021,-2283.61,0.0003452,30]
[339020388,1727130690031,-500.0,0.0003452,30]
[339020389,1727130690136,-729.07,0.0003452,25]
[339020390,1727130690148,-500.0,0.0003452,30]
[339020391,1727130690158,-500.0,0.0003452,30]
[339020392,1727130690168,-500.0,0.0003452,30]
[339020393,1727130690178,-500.0,0.0003452,30]
[339020394,1727130690188,-500.0,0.0003452,30]
[339020395,1727130690198,-500.0,0.0003452,30]
[339020396,1727130690208,-500.0,0.0003452,30]
[339020397,1727130690217,-639.96,0.0003452,30]
[339020398,1727130690227,-3024.97,0.0003452,30]
[339020399,1727130690236,-345.48029099,0.0003452,30]
[339020400,1727130690245,-1122.08,0.0003452,30]
[339020401,1727130690255,-500.0,0.0003452,30]
[339020402,1727130690264,-500.0,0.0003452,30]
[339020403,1727130690274,-500.0,0.0003452,30]
[339020404,1727130690283,-500.0,0.0003452,30]
[339020405,1727130690293,-500.0,0.0003452,30]
[339020406,1727130690303,-500.0,0.0003452,30]
[339020407,1727130690313,-500.0,0.0003452,30]
[339020408,1727130690322,-532.96,0.0003452,30]
[339020409,1727130690332,-500.0,0.0003452,30]
[339020410,1727130690342,-500.0,0.0003452,30]
[339020411,1727130690352,-500.0,0.0003452,30]
[339020412,1727130690362,-625.74,0.0003452,30]
[339020413,1727130690372,-500.0,0.0003452,30]
[339020414,1727130690382,-500.0,0.0003452,30]
[339020415,1727130690392,-783.45,0.0003452,30]
[339020416,1727130690402,-1230.74,0.0003452,30]
[339020417,1727130690411,-1846.29,0.0003452,30]
[339020418,1727130690421,-500.0,0.0003452,30]
[339020419,1727130690431,-1397.17,0.0003452,2]
[339020420,1727130690441,-500.0,0.0003452,30]
[339020421,1727130690450,-684.0,0.0003452,30]
[339020422,1727130690460,-604.33,0.0003452,30]
[339020423,1727130690470,-500.0,0.0003452,30]
[339020424,1727130690480,-500.0,0.0003452,30]
[339020425,1727130690490,-329.07982127,0.0003452,30]
[339020426,1727130690500,-1000.0,0.0003452,120]
[339020427,1727130690510,-825.29,0.0003452,30]
[339020428,1727130690521,-624.72,0.0003452,30]
[339020429,1727130690530,-500.0,0.0003452,30]
[339020430,1727130690542,-248.98,0.0003452,30]
[339020431,1727130690552,-500.0,0.0003452,30]
[339020432,1727130690562,-514.15,0.0003452,30]
[339020433,1727130690572,-500.0,0.0003452,30]
[339020434,1727130690582,-500.0,0.0003452,30]
[339020435,1727130690591,-500.0,0.0003452,30]
[339020436,1727130690601,-741.53,0.0003452,30]
[339020437,1727130690610,-500.0,0.0003452,30]
[339020438,1727130690620,-500.0,0.0003452,30]
[339020439,1727130690629,-500.0,0.0003452,120]
[339020440,1727130690639,-1260.11,0.0003452,30]
[339020441,1727130690649,-500.0,0.0003452,30]
[339020442,1727130690659,-545.43,0.0003452,30]
[339020443,1727130690668,-600.92367191,0.0003452,30]
[339020444,1727130690678,-271.88124625,0.0003452,30]
[339020445,1727130690687,-536.2,0.0003452,30]
[339020446,1727130690698,-500.0,0.0003452,30]
[339020447,1727130690708,-1484.78,0.0003452,30]
[339020448,1727130690718,-500.0,0.0003452,30]
[339020449,1727130690727,-4278.99,0.0003452,21]
[339020450,1727130690737,-500.0,0.0003452,30]
[339020451,1727130690747,-500.0,0.0003452,30]
[339020452,1727130690757,-500.0,0.0003452,30]
[339020453,1727130690767,-500.0,0.0003452,30]
[339020454,1727130690776,-500.0,0.0003452,30]
[339020455,1727130690786,-729.6,0.0003452,30]
[339020456,1727130690796,-500.0,0.0003452,30]
[339020457,1727130690806,-500.0,0.0003452,30]
[339020458,1727130690815,-500.0,0.0003452,30]
[339020459,1727130690827,-527.26,0.0003452,30]
[339020460,1727130690837,-1276.76,0.0003452,30]
[339020461,1727130690846,-500.0,0.0003452,30]
[339020462,1727130690856,-1463.58,0.0003452,30]
[339020463,1727130690866,-500.0,0.0003452,30]
[339020464,1727130690876,-306.83233676,0.0003452,30]
[339020465,1727130690886,-1844.92,0.0003452,30]
[339020466,1727130690895,-612.36,0.0003452,30]
[339020467,1727130690907,-500.0,0.0003452,30]
[339020468,1727130690917,-500.0,0.0003452,30]
[339020469,1727130690926,-500.0,0.0003452,7]
[339020470,1727130690936,-500.0,0.0003452,30]
[339020471,1727130690945,-500.0,0.0003452,30]
[339020472,1727130690955,-500.0,0.0003452,30]
[339020473,1727130690964,-500.0,0.0003452,30]
[339020474,1727130690973,-1266.01,0.0003452,30]
[339020475,1727130690983,-500.0,0.0003452,30]
[339020476,1727130690992,-1200.54,0.0003452,30]
[339020477,1727130691002,-501.9,0.0003452,30]
[339020478,1727130691011,-500.0,0.0003452,30]
[339020479,1727130691021,-1081.62,0.0003452,30]
[339020480,1727130691031,-500.0,0.0003452,30]
[339020481,1727130691042,-500.0,0.0003452,30]
[339020482,1727130691052,-500.0,0.0003452,30]
[339020483,1727130691061,-1820.79,0.0003452,7]
[339020484,1727130691071,-694.3,0.0003452,30]
[339020485,1727130691080,-1532.58,0.0003452,30]
[339020486,1727130691090,-1035.06,0.0003452,30]
[339020487,1727130691099,-40342.48,0.0003452,18]
[339020488,1727130691109,-503.98083127,0.0003452,30]
[339020489,1727130691123,-1152.0,0.00034544,2]
[339020490,1727130691132,-51082.643602,0.00034578,2]
[339020491,1727130691143,-719.75,0.00034657,30]
[339020492,1727130691153,-969.66,0.00034657,30]
[339020493,1727130691162,-711.06,0.00034657,30]
[339020494,1727130691172,-514.47,0.00034657,30]
[339020495,1727130691183,-513.89,0.00034657,30]
[339020496,1727130691193,-584.13,0.00034657,30]
[339020497,1727130691202,-984.17,0.00034657,30]
[339020498,1727130691211,-683.52,0.00034657,30]
[339020499,1727130691221,-500.0,0.00034657,30]
[339020500,1727130691231,-610.08,0.00034657,30]
[339020501,1727130691240,-1045.6,0.00034657,7]
[339020502,1727130691250,-859.64,0.00034657,30]
[339020503,1727130691260,-1071.88,0.00034657,30]
[339020504,1727130691270,-607.11,0.00034657,30]
[339020505,1727130691280,-500.0,0.00034657,30]
[339020506,1727130691290,-500.0,0.00034657,30]
[339020507,1727130691299,-475.50100301,0.00034657,30]
[339020508,1727130691309,-678.42,0.00034657,30]
[339020509,1727130691320,-520.8,0.00034657,30]
[339020510,1727130691330,-581.01,0.00034657,30]
[339020511,1727130691339,-624.97,0.00034657,30]
[339020512,1727130691349,-500.0,0.00034657,30]
[339020513,1727130691359,-746.07,0.00034657,30]
[339020514,1727130691368,-606.75,0.00034657,30]
[339020515,1727130691377,-500.0,0.00034657,30]
[339020516,1727130691387,-500.0,0.00034657,30]
[339020517,1727130691397,-608.73241675,0.00034657,30]
[339020518,1727130691406,-572.02,0.00034657,30]
[339020519,1727130691416,-527.38,0.00034657,30]
[339020520,1727130691425,-500.0,0.00034657,30]
[339020521,1727130691434,-2283.61,0.00034657,30]
[339020522,1727130691444,-253.08408027,0.00034657,30]
[339020523,1727130691453,-729.07,0.00034657,25]
[339020524,1727130691463,-500.0,0.00034657,30]
[339020525,1727130691472,-500.0,0.00034657,30]
[339020526,1727130691481,-500.0,0.00034657,30]
[339020527,1727130691491,-500.0,0.00034657,30]
[339020528,1727130691500,-500.0,0.00034657,30]
[339020529,1727130691509,-500.0,0.00034657,30]
[339020530,1727130691518,-500.0,0.00034657,30]
[339020531,1727130691527,-639.96,0.00034657,30]
[339020532,1727130691537,-3024.97,0.00034657,30]
[339020533,1727130691546,-1122.08,0.00034657,30]
[339020534,1727130691555,-500.0,0.00034657,30]
[339020535,1727130691565,-500.0,0.00034657,30]
[339020536,1727130691574,-274.49280108,0.00034657,30]
[339020537,1727130691583,-500.0,0.00034657,30]
[339020538,1727130691592,-500.0,0.00034657,30]
[339020539,1727130691602,-500.0,0.00034657,30]
[339020540,1727130691611,-569.7853304,0.00034657,30]
[339020541,1727130691620,-532.96,0.00034657,30]
[339020542,1727130691630,-500.0,0.00034657,30]
[339020543,1727130691639,-500.0,0.00034657,30]
[339020544,1727130691648,-500.0,0.00034657,30]
[339020545,1727130691657,-625.74,0.00034657,30]
[339020546,1727130691667,-599.57231837,0.00034657,30]
[339020547,1727130691676,-500.0,0.00034657,30]
[339020548,1727130691685,-783.45,0.00034657,30]
[339020549,1727130691695,-1230.74,0.00034657,30]
[339020550,1727130691704,-1846.29,0.00034657,30]
[339020551,1727130691714,-500.0,0.00034657,30]
[339020552,1727130691723,-1397.17,0.00034657,2]
[339020553,1727130691732,-500.0,0.00034657,30]
[339020554,1727130691742,-684.0,0.00034657,30]
[339020555,1727130691751,-604.33,0.00034657,30]
[339020556,1727130691760,-500.0,0.00034657,30]
[339020557,1727130691770,-500.0,0.00034657,30]
[339020558,1727130691878,-1000.0,0.00034657,120]
[339020559,1727130691888,-825.29,0.00034657,30]
[339020560,1727130691897,-624.72,0.00034657,30]
[339020561,1727130691909,-328.55201612,0.00034657,30]
[339020562,1727130691919,-248.98,0.00034657,30]
[339020563,1727130691928,-500.0,0.00034657,30]
[339020564,1727130691938,-514.15,0.00034657,30]
[339020565,1727130691947,-500.0,0.00034657,30]
[339020566,1727130691956,-420.04462964,0.00034657,30]
[339020567,1727130691966,-634.58002736,0.00034657,30]
[339020568,1727130691975,-741.53,0.00034657,30]
[339020569,1727130691984,-524.53817362,0.00034657,30]
[339020570,1727130692005,-500.0,0.00034657,30]
[339020571,1727130692016,-500.0,0.00034657,120]
[339020572,1727130692026,-1260.11,0.00034657,30]
[339020573,1727130692036,-603.90742919,0.00034657,30]
[339020574,1727130692046,-545.43,0.00034657,30]
[339020575,1727130692056,-536.2,0.00034657,30]
[339020576,1727130692066,-500.0,0.00034657,30]
[339020577,1727130692076,-1484.78,0.00034657,30]
[339020578,1727130692086,-500.0,0.00034657,30]
[339020579,1727130692095,-4278.99,0.00034657,21]
[339020580,1727130692105,-599.32841897,0.00034657,30]
[339020581,1727130692114,-313.41494421,0.00034657,30]
[339020582,1727130692124,-500.0,0.00034657,30]
[339020583,1727130692135,-500.0,0.00034657,30]
[339020584,1727130692144,-500.0,0.00034657,30]
[339020585,1727130692153,-729.6,0.00034657,30]
[339020586,1727130692163,-500.0,0.00034657,30]
[339020587,1727130692173,-500.0,0.00034657,30]
[339020588,1727130692183,-500.0,0.00034657,30]
[339020589,1727130692193,-527.26,0.00034657,30]
[339020590,1727130692202,-1276.76,0.00034657,30]
[339020591,1727130692212,-500.0,0.00034657,30]
[339020592,1727130692221,-1463.58,0.00034657,30]
[339020593,1727130692231,-500.0,0.00034657,30]
[339020594,1727130692241,-1844.92,0.00034657,30]
[339020595,1727130692250,-612.36,0.00034657,30]
[339020596,1727130692260,-500.0,0.00034657,30]
[339020597,1727130692270,-500.0,0.00034657,30]
[339020598,1727130692280,-500.0,0.00034657,7]
[339020599,1727130692292,-500.0,0.00034657,30]
[339020600,1727130692302,-500.0,0.00034657,30]
[339020601,1727130692312,-500.0,0.00034657,30]
[339020602,1727130692321,-500.0,0.00034657,30]